Workbook

Sheet Report
A1: Section | B1: Written By
A2: Titles & Contents | B2: MO
A3: 1 Exec Summary | B3: MO
A4: 2 Tariff Summary | B4: MO
A5: 3 Introduction | B5: MO
A6: 4 Updates to the charging model for 2016/17 | B6: MO
A7: 5 Forecast generation tariffs for 2016/17 | B7: MO
A8: 6 Forecast demand tariffs for 2016/17 | B8: MO
A9: 7 Sensitivitied and Uncertainties | B9: MO
A10: 8 Tools & Supporting Information | B10: MO
A11: Appendix A - Revenue Tables | B11: MO
A12: Appendix B - Generation changes | B12: MO
A13: Appendix C - Demand Changes | B13: MO
A14: Appendix D - Generation Zones | B14: MO
A15: Appendix E - Demand zones | B15: MO

Sheet Index
A1: Index
A3: Residuals
A4: Averages
A5: ='T1'!A1 -> Table 1 - Generation Wider Tariffs
A6: ='T2'!A1 -> Table 2 - Local Substation Tariffs
A7: ='T3'!A1 -> Table 3 - Local Circuit Tariffs
A8: ='T4'!A1 -> Table 4 - Offshore Local Tariffs
A9: ='T5'!A1 -> Table 5 - Demand Tariffs
A10: ='T6'!A1 -> Table 6 - Contracted and Modelled TEC
A11: ='T7'!A1 -> Table 7 - Allowed Revenues
A12: ='T8'!A1 -> Table 8 - Charging Bases
A13: ='T9'!A1 -> Table 9 - Interconectors
A14: ='T10'!A1 -> Table 10 - Generation and Demand Revenue Proportions
A15: ='T11'!A1 -> Table 11 - Residual Calculation
A16: ='T12'!A1:E1 -> Table 12 - Small Generator Discount
A17: ='T13 & Fig 1'!A1 -> Table 13 - Generation Tariff Changes
A18: ='T14'!A1 -> Table 14 - Circuits subject to one-off charges
A19: ='T15 & Fig 2'!A1 -> Table 15 - Change in HH Demand Tariffs
A20: ='T16 & Fig 3'!A1 -> Table 16 - NHH Demand Tariff Changes
A21: ='T17'!A1 -> Table 17 - National Grid Revenue Forecast
A22: ='T18'!A1 -> Table 18 - SP Transmission Revenue Forecast
A23: ='T19'!A1 -> Table 19 - SHE Transmission Revenue Forecast
A24: ='T20'!A1 -> Table 20 - Offshore Revenues
A25: ='T21'!A1 -> Table 21 - Demand Profiles
A26: ='T13 & Fig 1'!J1 -> Figure 1 - Variation on Generation Zonal Tariffs
A27: ='T15 & Fig 2'!H1 -> Figure 2 - HH Demand Tariffs
A28: ='T16 & Fig 3'!G1 -> Figure 3 - NHH Demand Tariffs

Sheet Residuals
A1: Residual | B1: 2017/18 Initial | C1: 2017/18 June | D1: Change
A2: Generation | B2: -0.9200766112 | C2: -2.090499571 | D2: =C2-B2 -> -1.17042296
A3: Demand | B3: 46.34195824 | C3: 47.95488696 | D3: =C3-B3 -> 1.612928722
A5: Average Tariff | B5: 2017/18 Initial | C5: 2017/18 June | D5: Change
A6: Generation (£/kW) | B6: 6.688956818 | C6: 5.823698816 | D6: =C6-B6 -> -0.8652580014 | F6: N.B. These generation average tariffs include local tariffs
A7: HH Demand (£/kW) | B7: 47.89086893 | C7: 49.49441609 | D7: =C7-B7 -> 1.603547155
A8: NHH Demand (p/kWh) | B8: 6.502384776 | C8: 6.491191041 | D8: -0.01119373523

Sheet T1
A1: Table 1 - Generation Wider Tariffs
C3: System Peak | D3: Shared Year Round | E3: Not Shared Year Round | F3: Residual | G3: Conventional 80% | H3: Intermittent 40%
A4: Zone | B4: Zone Name | C4: Tariff (£/kW) | D4: Tariff (£/kW) | E4: Tariff (£/kW) | F4: Tariff (£/kW) | G4: Tariff (£/kW) | H4: Tariff (£/kW)
A5: 1 | B5: North Scotland | C5: -0.721796693 | D5: 12.45881497 | E5: 16.23839894 | F5: -2.090499571 | G5: 23.39315465 | H5: 19.13142536
A6: 2 | B6: East Aberdeenshire | C6: 0.4982268799 | D6: 6.088188063 | E6: 16.23839894 | F6: -2.090499571 | G6: 19.5166767 | H6: 16.58317459
A7: 3 | B7: Western Highlands | C7: -0.7235994123 | D7: 10.57036471 | E7: 16.17916905 | F7: -2.090499571 | G7: 21.82136183 | H7: 18.31681536
A8: 4 | B8: Skye and Lochalsh | C8: -6.43524915 | D8: 10.57036471 | E8: 15.88683875 | F8: -2.090499571 | G8: 15.8173818 | H8: 18.02448507
A9: 5 | B9: Eastern Grampian and Tayside | C9: -0.5985163663 | D9: 10.06234225 | E9: 15.97225513 | F9: -2.090499571 | G9: 21.33311299 | H9: 17.90669246
A10: 6 | B10: Central Grampian | C10: 1.689743533 | D10: 10.97111614 | E10: 16.55323427 | F10: -2.090499571 | G10: 24.92937115 | H10: 18.85118116
A11: 7 | B11: Argyll | C11: 0.7486566373 | D11: 8.527079686 | E11: 25.47121031 | F11: -2.090499571 | G11: 30.95103112 | H11: 26.79154261
A12: 8 | B12: The Trossachs | C12: 1.161756492 | D12: 8.527079686 | E12: 14.87990726 | F12: -2.090499571 | G12: 20.77282793 | H12: 16.20023956
A13: 9 | B13: Stirlingshire and Fife | C13: -0.3802918307 | D13: 3.589354022 | E13: 13.22420988 | F13: -2.090499571 | G13: 13.62490169 | H13: 12.56945191
A14: 10 | B14: South West Scotlands | C14: 1.472255697 | D14: 7.131613921 | E14: 14.16532648 | F14: -2.090499571 | G14: 19.25237375 | H14: 14.92747248
A15: 11 | B15: Lothian and Borders | C15: 2.684772059 | D15: 7.131613921 | E15: 8.59274551 | F15: -2.090499571 | G15: 14.89230913 | H15: 9.354891507
A16: 12 | B16: Solway and Cheviot | C16: 0.482069936 | D16: 4.067815547 | E16: 7.609049468 | F16: -2.090499571 | G16: 9.254872271 | H16: 7.145676116
A17: 13 | B17: North East England | C17: 3.406680995 | D17: 2.584199787 | E17: 4.263169313 | F17: -2.090499571 | G17: 7.646710566 | H17: 3.206349656
A18: 14 | B18: North Lancashire and The Lakes | C18: 1.401862209 | D18: 2.584199787 | E18: 2.725378322 | F18: -2.090499571 | G18: 4.104100789 | H18: 1.668558665
A19: 15 | B19: South Lancashire, Yorkshire and Humber | C19: 4.284926601 | D19: 0.9757245405 | E19: 0.002952342264 | F19: -2.090499571 | G19: 2.977959004 | H19: -1.697257413
A20: 16 | B20: North Midlands and North Wales | C20: 3.645436254 | D20: -0.5966884895 | E20: 0 | F20: -2.090499571 | G20: 1.077585891 | H20: -2.329174967
A21: 17 | B21: South Lincolnshire and North Norfolk | C21: 1.782871483 | D21: -0.026289652 | E21: 0 | F21: -2.090499571 | G21: -0.3286598092 | H21: -2.101015432
A22: 18 | B22: Mid Wales and The Midlands | C22: 0.958035765 | D22: 0.2035588355 | E22: 0 | F22: -2.090499571 | G22: -0.9696167377 | H22: -2.009076037
A23: 19 | B23: Anglesey and Snowdon | C23: 3.464579863 | D23: -0.5502456078 | E23: 0 | F23: -2.090499571 | G23: 0.9338838059 | H23: -2.310597814
A24: 20 | B24: Pembrokeshire | C24: 8.581376351 | D24: -4.287610409 | E24: 0 | F24: -2.090499571 | G24: 3.060788452 | H24: -3.805543735
A25: 21 | B25: South Wales & Gloucester | C25: 5.829377117 | D25: -4.23436057 | E25: 0 | F25: -2.090499571 | G25: 0.3513890902 | H25: -3.784243799
A26: 22 | B26: Cotswold | C26: 2.886218236 | D26: 1.840442241 | E26: -6.049236994 | F26: -2.090499571 | G26: -3.781164536 | H26: -7.403559668
A27: 23 | B27: Central London | C27: -4.333559576 | D27: 1.840442241 | E27: -5.43154264 | F27: -2.090499571 | G27: -10.38324799 | H27: -6.785865315
A28: 24 | B28: Essex and Kent | C28: -3.664424465 | D28: 1.840442241 | E28: 0 | F28: -2.090499571 | G28: -4.282570243 | H28: -1.354322674
A29: 25 | B29: Oxfordshire, Surrey and Sussex | C29: -1.311002946 | D29: -2.822261952 | E29: 0 | F29: -2.090499571 | G29: -5.659312079 | H29: -3.219404352
A30: 26 | B30: Somerset and Wessex | C30: -1.371057616 | D30: -4.083014853 | E30: 0 | F30: -2.090499571 | G30: -6.72796907 | H30: -3.723705512
A31: 27 | B31: West Devon and Cornwall | C31: 0.05284945423 | D31: -5.450313921 | E31: 0 | F31: -2.090499571 | G31: -6.397901254 | H31: -4.27062514
C33: Small Generation Discount (£/kW) | F33: -11.466097

Sheet T2
A1: Table 2 - Local Substation Tariffs
A3: Substation Rating | B3: Connection Type | C3: Local Substation Tariff (£/kW)
C4: 132kV | D4: 275kV | E4: 400kV
A5: <1320 MW | B5: No redundancy | C5: 0.184263 | D5: 0.10541 | E5: 0.07595
A6: <1320 MW | B6: Redundancy | C6: 0.405916 | D6: 0.251143 | E6: 0.182652
A7: >=1320 MW | B7: No redundancy | D7: 0.330507 | E7: 0.239024
A8: >=1320 MW | B8: Redundancy | D8: 0.542609 | E8: 0.396059

Sheet T3
A1: Table 3 - Local Circuit Tariffs
A3: Substation Name | B3: (£/kW) | C3: Substation Name | D3: (£/kW) | E3: Substation Name | F3: (£/kW)
A4: Achruach | B4: 3.937092109 | C4: Dinorwig | D4: 2.206318501 | E4: Kilmorack | F4: 0.1812514132
A5: Aigas | B5: 0.600240801 | C5: Dunlaw Extension | D5: 5.448815268 | E5: Langage | F5: 0.6034750237
A6: An Suidhe | B6: 2.801853923 | C6: Brochlock | D6: 1.967439772 | E6: Lochay | F6: 0.3358478944
A7: Arecleoch | B7: 1.906655052 | C7: Dumnaglass | D7: 1.703909624 | E7: Luichart | F7: 0.5267796128
A8: Baglan Bay | B8: 0.6394175258 | C8: Edinbane | D8: -6.277925142 | E8: Mark Hill | F8: 0.8035617128
A9: Beinneun Wind Farm | B9: 1.378900315 | C9: Earlshaugh Wind Farm | D9: 3.453708603 | E9: Margree | F9: 3.333677741
A10: Bhlaraidh Wind Farm | B10: 0.5925541031 | C10: Ewe Hill | D10: 1.261179341 | E10: Marchwood | F10: 0.3511524175
A11: Black Hill | B11: 1.185108206 | C11: Farr Windfarm | D11: 2.038676315 | E11: Millennium Wind | F11: 1.67660205
A12: BlackCraig Wind Farm | B12: 3.585563662 | C12: Fallago | D12: 0.5515527779 | E12: Moffat | F12: 0.1513981786
A13: Black Law | B13: 1.603673696 | C13: Carraig Gheal | D13: 4.03707204 | E13: Mossford | F13: 2.642953224
A14: BlackLaw Extension | B14: 3.400797653 | C14: Ffestiniogg | D14: 0.2325794794 | E14: Nant | F14: 2.303349422
A15: Bodelwyddan | B15: 0.1019846702 | C15: Finlarig | D15: 0.2938669076 | E15: Necton | F15: -0.3455853706
A16: Carrington | B16: -0.03175528791 | C16: Foyers | D16: 0.691063073 | E16: Rhigos | F16: 0.06701213706
A17: Clyde (North) | B17: 0.1006481337 | C17: Galawhistle | D17: 0.7767263244 | E17: Rocksavage | F17: 0.01619567435
A18: Clyde (South) | B18: 0.1163946966 | C18: Glendoe | D18: 1.68814792 | E18: Saltend | F18: 0.3124054315
A19: Corriegarth | B19: 3.459056373 | C19: Ulziside | D19: 9.620206799 | E19: South Humber Bank | F19: 0.8759795089
A20: Corriemoillie | B20: 1.527365735 | C20: Gordonbush | D20: 1.080159823 | E20: Spalding | F20: 0.2527581981
A21: Coryton | B21: 0.05173214973 | C21: Griffin Wind | D21: -0.8735092967 | E21: Kilbraur | F21: 0.7173566805
A22: Cruachan | B22: 1.680221039 | C22: Hadyard Hill | D22: 2.540268148 | E22: Stronelairg | F22: 3.345937205
A23: Crystal Rig | B23: 0.4715369948 | C23: Harestanes | D23: 2.296626604 | E23: Strathy Wind | F23: 2.398186938
A24: Culligran | B24: 1.590652202 | C24: Hartlepool | D24: 0.5502353089 | E24: West of Duddon | F24: 0.7838290222
A25: Deanie | B25: 2.613214333 | C25: Hedon | D25: 0.1661282945 | E25: Whitelee | F25: 0.09740141973
A26: Dersalloch | B26: 2.210714962 | C26: Invergarry | D26: 1.302360756 | E26: Whitelee Extension | F26: 0.2707759468
A27: Didcot | B27: 0.4748413116 | C27: Kilgallioch | D27: 0.9658974123

Sheet T4
A1: Table 4 - Offshore Local Tariffs
A3: Offshore Generator | B3: Tariff Component (£/kW)
B4: Substation | C4: Circuit | D4: ETUoS
A5: Barrow | B5: 7.425219 | C5: 38.848738 | D5: 0.964667
A6: Greater Gabbard | B6: 13.921412 | C6: 31.990036 | D6: 0
A7: Gunfleet | B7: 16.069779 | C7: 14.753316 | D7: 2.75748
A8: Gwynt Y Mor | B8: 16.954053 | C8: 16.701837 | D8: 0
A9: Lincs | B9: 13.876504 | C9: 54.329683 | D9: 0
A10: London Array | B10: 9.4461 | C10: 32.172891 | D10: 0
A11: Ormonde | B11: 22.954789 | C11: 42.762622 | D11: 0.340782
A12: Robin Rigg East | B12: =+B13 -> -0.424633 | C12: =+C13 -> 28.128278 | D12: =+D13 -> 8.718248
A13: Robin Rigg West | B13: -0.424633 | C13: 28.128278 | D13: 8.718248
A14: Sheringham Shoal | B14: 22.178305 | C14: 26.009956 | D14: 0.56538
A15: Thanet | B15: 16.889585 | C15: 31.471334 | D15: 0.757626
A16: Walney 1 | B16: 19.811071 | C16: 39.453697 | D16: 0
A17: Walney 2 | B17: 19.666991 | C17: 39.801286 | D17: 0
A18: West of Duddon Sands | B18: 7.644551 | C18: 37.721124 | D18: 0
A19: Westermost Rough | B19: 16.096856 | C19: 27.228993 | D19: 0

Sheet T5
A1: Table 5 - Demand Tariffs
A3: Zone | B3: Zone Name | C3: HH Demand Tariff (£/kW) | D3: NHH Demand Tariff (p/kWh)
A4: 1 | B4: Northern Scotland | C4: 30.95359348 | D4: 5.251831713
A5: 2 | B5: Southern Scotland | C5: 30.87971504 | D5: 4.939041945
A6: 3 | B6: Northern | C6: 39.40167617 | D6: 5.793732565
A7: 4 | B7: North West | C7: 45.47160489 | D7: 6.201678794
A8: 5 | B8: Yorkshire | C8: 45.33033123 | D8: 6.084581624
A9: 6 | B9: N Wales & Mersey | C9: 47.19885427 | D9: 7.110998707
A10: 7 | B10: East Midlands | C10: 48.57516217 | D10: 6.726673732
A11: 8 | B11: Midlands | C11: 50.03651602 | D11: 6.666523967
A12: 9 | B12: Eastern | C12: 50.50277143 | D12: 7.105486224
A13: 10 | B13: South Wales | C13: 47.16595445 | D13: 6.226581772
A14: 11 | B14: South East | C14: 53.4748695 | D14: 6.986978681
A15: 12 | B15: London | C15: 55.95345715 | D15: 7.179652666
A16: 13 | B16: Southern | C16: 54.45443949 | D16: 7.040039368
A17: 14 | B17: South Western | C17: 53.04657315 | D17: 7.059062715

Sheet T6
A1: Table 6 - Contracted and Modelled TEC
A3: (GW) | B3: 2016/17 | C3: 2017/18 Initial forecast | D3: 2017/18 June Forecast | E3: 2017/18 Oct Forecast | F3: 2017/18 Draft Tariffs | G3: 2017/18 Final Tariffs
A4: Contracted TEC | B4: 69.86496 | C4: 73.44216 | D4: 73.09276
A5: Modelled Best ViewTEC | B5: 69.86496 | C5: 71.09486 | D5: 73.79686

Sheet T7
A1: Table 7 - Allowed Revenues
A3: £m Nominal Value | B3: 2016/17 TNUoS Revenue | C3: 2017/18 TNUoS Revenue
B4: Jan 2016 Final | C4: Feb 2016 Initial View | D4: June 2016 Update | E4: Oct 2016 Update | F4: Dec 2016 Draft | G4: Jan 2017 Final
A5: National Grid
A6: Price controlled revenue | B6: 1828.226523 | C6: 1806.448339 | D6: 1811.214837
A7: Less income from connections | B7: 42.67704326 | C7: 46.49711116 | D7: 46.49711116
A8: Income from TNUoS | B8: 1785.549479 | C8: 1759.951228 | D8: 1764.717726
A10: Scottish Power Transmission
A11: Price controlled revenue | B11: 306.44 | C11: 347.0504075 | D11: 340.9657044
A12: Less income from connections | B12: 11.816 | C12: 13.91222571 | D12: 13.97135212
A13: Income from TNUoS | B13: 294.624 | C13: 333.1381818 | D13: 326.9943522
A15: SHE Transmission
A16: Price controlled revenue | B16: 326.217 | C16: 328.5129843 | D16: 327.2822279
A17: Less income from connections | B17: 3.38 | C17: 3.589031814 | D17: 3.589042111
A18: Income from TNUoS | B18: 322.837 | C18: 324.9239525 | D18: 323.6931858
A20: Offshore | B20: 260.7893126 | C20: 276.5028564 | D20: 279.235244
A21: Network Innovation Competition | B21: 44.85487989 | C21: 40.5 | D21: 40.5
A22: Total to Collect from TNUoS | B22: 2708.654672 | C22: 2735.016218 | D22: 2735.140508

Sheet T8
A1: Table 8 - Charging Bases
A3: Charging Base | B3: 2016/17 | C3: 2017/18 Initial | D3: 2017/18 June
A4: Generation (GW) | B4: 62.85886 | C4: 67.25500353 | D4: 67.01186
A5: Total Average Triad (GW) | B5: 49.8 | C5: 49.29773806 | D5: 49.100818
A6: HH Demand Average Triad (GW) | B6: 13.1005 | C6: 16.29986949 | D6: 16.40720511
A7: NHH Demand (4pm-7pm TWh) | B7: 26.146825 | C7: 23.13821071 | D7: 23.61382469

Sheet T9
A1: Table 9 - Interconectors
A3: Interconnector | B3: Site | C3: Interconnected System | D3: Generation Zone | E3: Transport Model (Generation MW) Peak | F3: Transport Model (Generation MW) Year Round | G3: Charging Base (Generation MW)
A4: IFA Interconnector | B4: Sellindge 400kV | C4: France | D4: 24 | E4: 0 | F4: 2000 | G4: 0
A5: ElecLink | B5: Sellindge 400kV | C5: France | D5: 24 | E5: 0 | F5: 1000 | G5: 0
A6: Britned | B6: Grain 400kV | C6: Netherlands | D6: 24 | E6: 0 | F6: 1200 | G6: 0
A7: East - West | B7: Deesside 400kV | C7: Republic of Ireland | D7: 16 | E7: 0 | F7: 505 | G7: 0
A8: Moyle | B8: Auchencrosh 275kV | C8: Northern Ireland | D8: 10 | E8: 0 | F8: 80 | G8: 0

Sheet T10
A1: Table 10 - Generation and Demand Revenue Proportions
C3: 2016/17 | D3: 2017/18 Initial | E3: 2017/18 June
A4: CAPEC | B4: Limit on generation tariff (€/MWh) | C4: 2.5 | D4: 2.5 | E4: 2.5
A5: y | B5: Error Margin | C5: 0.082 | D5: 0.082 | E5: 0.21
A6: ER | B6: Exchange Rate (€/£) | C6: 1.36 | D6: 1.34 | E6: 1.27
A7: MAR | B7: Total Revenue (£m) | C7: 2708.653351 | D7: 2735.016218 | E7: 2735.140399
A8: GO | B8: Gerneration Output (TWh) | C8: 268.69725 | D8: 262.66675 | E8: 250.95
A9: G | B9: % of revenue from generation | C9: 0.1673992758 | D9: =D8*D4*(1-D5)/(D7*D6) -> 0.1644837831 | E9: =E8*E4*(1-E5)/(E7*E6) -> 0.1426825804
A10: D | B10: % of revenue from demand | C10: 0.8326007242 | D10: =1-D9 -> 0.8355162169 | E10: =1-E9 -> 0.8573174196
A11: G.R | B11: Revenue recovered from generation (£m) | C11: 453.4266094 | D11: =D9*D7 -> 449.8658144 | E11: =E9*E7 -> 390.2568898
A12: D.R | B12: Revenue recovered from demand (£m) | C12: 2255.226742 | D12: =D7*D10 -> 2285.150404 | E12: =E7*E10 -> 2344.883509

Sheet T11
A1: Table 11 - Residual Calculation
C3: 2016/17 | D3: 2017/18 Initial | E3: 2017/18 June
A4: RG | B4: Generator residual tariff (£/kW) | C4: 0.5057806382 | D4: =((D8*D6)-D9-D11-D12-D13)/D14 -> 0.8348141155 | E4: =((E8*E6)-E9-E11-E12-E13)/E14 -> -2.090499338
A5: RD | B5: Demand residual tariff (£/kW) | C5: 45.33384785 | D5: =((D8*D7)-D10)/D15 -> 46.34195824 | E5: =((E8*E7)-E10)/E15 -> 47.95488887
A6: G | B6: Proportion of revenue recovered from generation (%) | C6: 0.1673992758 | D6: ='T10'!D9 -> 0.1644837831 | E6: ='T10'!E9 -> 0.1426825804
A7: D | B7: Proportion of revenue recovered from demand (%) | C7: 0.8326007242 | D7: ='T10'!D10 -> 0.8355162169 | E7: ='T10'!E10 -> 0.8573174196
A8: R | B8: Total TNUoS revenue (£m) | C8: 2708.654672 | D8: ='T7'!C22 -> 2735.016218 | E8: ='T7'!D22 -> 2735.140508
A9: ZG | B9: Revenue recovered from the locational element of generator tariffs (£m) | C9: 191.8863667 | D9: 148.2270948 | E9: 275.3015047
A10: ZD | B10: Revenue recovered from the locational element of demand tariffs (£m) | C10: -2.397781446 | D10: 0.5966855747 | E10: -9.740667617
A11: O | B11: Revenue recovered from offshore local tariffs (£m) | C11: 200.5761521 | D11: 212.9071994 | E11: 223.3881952
A12: LG | B12: Revenue recovered from onshore local substation tariffs (£m) | C12: 15.91648199 | D12: 17.03258028 | E12: 17.61158689
A13: SG | B13: Revenue recovered from onshore local circuit tariffs (£m) | C13: 13.25503537 | D13: 15.55351362 | E13: 14.04386755
A14: BG | B14: Generator charging base (GW) | C14: 62.85886 | D14: 67.25500353 | E14: =+'T8'!D4 -> 67.01186
A15: BD | B15: Demand charging base (GW) | C15: 49.8 | D15: 49.29773806 | E15: =+'T8'!D5 -> 49.100818

Sheet T12
A1: Table 12 - Small Generator Discount
A3: Small Generator Discount Calculation
A4: Generator Residual (£/kW) | B4: G | C4: -2.090499571
A5: Demand Residual (£/kW) | B5: D | C5: 47.95488696
A6: Small Generator Discount (£/kW) | B6: T = (G + D)/4 | C6: 11.466097
A7: Forecast Small Generator Volume (kW) | B7: V | C7: 2641010
A8: 2017/18 SGD cost (£) | B8: V x T | C8: =+C7*C6 -> 30282076.84
A9: Prior year reconcilation (£) | B9: R | C9: 0
A10: Total SGD Cost (£) | B10: C = (V x T) + R | C10: =C8+C9 -> 30282076.84
A11: Total System Triad Demand (kW) | B11: TD | C11: =+'T8'!D5*1000000 -> 49100818
A12: Total HH Triad Demand (kW) | B12: HHD | C12: =+'T8'!D6*1000000 -> 16407205.11
A13: Total NHH Consumption (kWh) | B13: NHHD | C13: =+'T8'!D7*1000000000 -> 2.361382469e+10
A14: Increase in HH Demand tariff (£/kW) | B14: HHT = C/TD | C14: =+C10/C11 -> 0.6167326345
A15: Total Cost to HH Customers (£) | B15: HHC = HHT * HHD | C15: =+C14*C12 -> 10118858.83
A16: Increase in NHH Demand tariff (p/kWh) | B16: NHHT = (C - HHC)/NHHD | C16: =100*(+C10-(+C14*C12))/(C13) -> 0.08538734521
A17: Total Cost to NHH Customers (£) | B17: NHHC = NHHT * NHHD | C17: =(+C16*C13)/100 -> 20163218.01

Sheet T13 & Fig 1
A1: Table 13 - Generation Tariff Changes | J1: Figure 1 - Variation on Generation Zonal Tariffs
A4: Wider Generation Tariffs (£/kW)
C5: Conventional 80% | F5: Intermittent 40% | I5: Change in Residual (£/kW)
A6: Zone | B6: Zone Name | C6: 2017/18 Initial Forecast (£/kW) | D6: 2017/18 June Forecast (£/kW) | E6: Change (£/kW) | F6: 2017/18 Initial Forecast (£/kW) | G6: 2017/18 June Forecast (£/kW) | H6: Change (£/kW)
A7: 1 | B7: North Scotland | C7: 24.62042786 | D7: 23.39315465 | E7: =D7-C7 -> -1.227273206 | F7: 20.65949491 | G7: 19.13142536 | H7: =G7-F7 -> -1.528069553 | I7: =+Residuals!$D$2 -> -1.17042296
A8: 2 | B8: East Aberdeenshire | C8: 20.38415301 | D8: 19.5166767 | E8: -0.8674763116 | F8: 17.96185659 | G8: 16.58317459 | H8: -1.378681997 | I8: =+Residuals!$D$2 -> -1.17042296
A9: 3 | B9: Western Highlands | C9: 22.58685855 | D9: 21.82136183 | E9: -0.7654967214 | F9: 19.57956991 | G9: 18.31681536 | H9: -1.262754554 | I9: =+Residuals!$D$2 -> -1.17042296
A10: 4 | B10: Skye and Lochalsh | C10: 19.97551006 | D10: 15.8173818 | E10: -4.15812826 | F10: 20.98403093 | G10: 18.02448507 | H10: -2.959545864 | I10: =+Residuals!$D$2 -> -1.17042296
A11: 5 | B11: Eastern Grampian and Tayside | C11: 21.14590628 | D11: 21.33311299 | E11: 0.1872067105 | F11: 18.74907293 | G11: 17.90669246 | H11: -0.842380476 | I11: =+Residuals!$D$2 -> -1.17042296
A12: 6 | B12: Central Grampian | C12: 24.177829 | D12: 24.92937115 | E12: 0.7515421509 | F12: 19.65806678 | G12: 18.85118116 | H12: -0.80688562 | I12: =+Residuals!$D$2 -> -1.17042296
A13: 7 | B13: Argyll | C13: 29.64448097 | D13: 30.95103112 | E13: 1.306550156 | F13: 27.30687847 | G13: 26.79154261 | H13: -0.5153358552 | I13: =+Residuals!$D$2 -> -1.17042296
A14: 8 | B14: The Trossachs | C14: 19.84194076 | D14: 20.77282793 | E14: 0.9308871711 | F14: 16.88142919 | G14: 16.20023956 | H14: -0.681189634 | I14: =+Residuals!$D$2 -> -1.17042296
A15: 9 | B15: Stirlingshire and Fife | C15: 13.94390279 | D15: 13.62490169 | E15: -0.3190010962 | F15: 13.35688174 | G15: 12.56945191 | H15: -0.7874298223 | I15: =+Residuals!$D$2 -> -1.17042296
A16: 10 | B16: South West Scotlands | C16: 18.57782195 | D16: 19.25237375 | E16: 0.6745517968 | F16: 15.65593135 | G16: 14.92747248 | H16: -0.7284588702 | I16: =+Residuals!$D$2 -> -1.17042296
A17: 11 | B17: Lothian and Borders | C17: 15.23374661 | D17: 14.89230913 | E17: -0.3414374727 | F17: 10.34151643 | G17: 9.354891507 | H17: -0.9866249266 | I17: =+Residuals!$D$2 -> -1.17042296
A18: 12 | B18: Solway and Cheviot | C18: 10.45252451 | D18: 9.254872271 | E18: -1.19765224 | F18: 8.339043365 | G18: 7.145676116 | H18: -1.193367249 | I18: =+Residuals!$D$2 -> -1.17042296
A19: 13 | B19: North East England | C19: 8.130132295 | D19: 7.646710566 | E19: -0.4834217293 | F19: 4.371928348 | G19: 3.206349656 | H19: -1.165578692 | I19: =+Residuals!$D$2 -> -1.17042296
A20: 14 | B20: North Lancashire and The Lakes | C20: 5.036022078 | D20: 4.104100789 | E20: -0.9319212893 | F20: 2.679787431 | G20: 1.668558665 | H20: -1.011228766 | I20: =+Residuals!$D$2 -> -1.17042296
A21: 15 | B21: South Lancashire, Yorkshire and Humber | C21: 3.953811181 | D21: 2.977959004 | E21: -0.9758521762 | F21: -0.3068667965 | G21: -1.697257413 | H21: -1.390390616 | I21: =+Residuals!$D$2 -> -1.17042296
A22: 16 | B22: North Midlands and North Wales | C22: 2.039654933 | D22: 1.077585891 | E22: -0.9620690415 | F22: -1.20828171 | G22: -2.329174967 | H22: -1.120893257 | I22: =+Residuals!$D$2 -> -1.17042296
A23: 17 | B23: South Lincolnshire and North Norfolk | C23: 0.5699722554 | D23: -0.3286598092 | E23: -0.8986320646 | F23: -0.6581838072 | G23: -2.101015432 | H23: -1.442831625 | I23: =+Residuals!$D$2 -> -1.17042296
A24: 18 | B24: Mid Wales and The Midlands | C24: 0.1351852405 | D24: -0.9696167377 | E24: -1.104801978 | F24: -0.9946503006 | G24: -2.009076037 | H24: -1.014425736 | I24: =+Residuals!$D$2 -> -1.17042296
A25: 19 | B25: Anglesey and Snowdon | C25: 3.012960231 | D25: 0.9338838059 | E25: -2.079076425 | F25: -1.556699352 | G25: -2.310597814 | H25: -0.7538984625 | I25: =+Residuals!$D$2 -> -1.17042296
A26: 20 | B26: Pembrokeshire | C26: 4.314522654 | D26: 3.060788452 | E26: -1.253734201 | F26: -2.810570943 | G26: -3.805543735 | H26: -0.9949727917 | I26: =+Residuals!$D$2 -> -1.17042296
A27: 21 | B27: South Wales & Gloucester | C27: 1.627356925 | D27: 0.3513890902 | E27: -1.275967835 | F27: -2.786505967 | G27: -3.784243799 | H27: -0.9977378321 | I27: =+Residuals!$D$2 -> -1.17042296
A28: 22 | B28: Cotswold | C28: -2.518292927 | D28: -3.781164536 | E28: -1.262871609 | F28: -6.423243947 | G28: -7.403559668 | H28: -0.9803157216 | I28: =+Residuals!$D$2 -> -1.17042296
A29: 23 | B29: Central London | C29: -8.793340911 | D29: -10.38324799 | E29: -1.589907083 | F29: -6.656087828 | G29: -6.785865315 | H29: -0.1297774871 | I29: =+Residuals!$D$2 -> -1.17042296
A30: 24 | B30: Essex and Kent | C30: -3.129245182 | D30: -4.282570243 | E30: -1.153325061 | F30: -0.3481695105 | G30: -1.354322674 | H30: -1.006153164 | I30: =+Residuals!$D$2 -> -1.17042296
A31: 25 | B31: Oxfordshire, Surrey and Sussex | C31: -4.458317459 | D31: -5.659312079 | E31: -1.200994619 | F31: -2.227515194 | G31: -3.219404352 | H31: -0.9918891577 | I31: =+Residuals!$D$2 -> -1.17042296
A32: 26 | B32: Somerset and Wessex | C32: -5.48939296 | D32: -6.72796907 | E32: -1.238576109 | F32: -2.734590072 | G32: -3.723705512 | H32: -0.9891154401 | I32: =+Residuals!$D$2 -> -1.17042296
A33: 27 | B33: West Devon and Cornwall | C33: -5.1556653 | D33: -6.397901254 | E33: -1.242235954 | F33: -3.282213662 | G33: -4.27062514 | H33: -0.9884114775 | I33: =+Residuals!$D$2 -> -1.17042296

Sheet T14
A1: Table 14 - Circuits subject to one-off charges
A3: Node 1 | B3: Node 2 | C3: Actual Parameters | D3: Amendment in Transport Model | E3: Generator
A4: Wishaw 132kV | B4: Blacklaw 132kV | C4: 11.46km of Cable | D4: 11.46km of OHL | E4: Blacklaw
A5: East Kilbride South 275kV | B5: Whitelee 275kV | C5: 6km of Cable | D5: 6km of OHL | E5: Whitelee
A6: East Kilbride South 275kV | B6: Whitelee Extension 275kV | C6: 16.68km of Cable | D6: 16.68km of OHL | E6: Whitelee Extension
A7: Elvanfoot 275kV | B7: Clyde North 275kV | C7: 6.2km of Cable | D7: 6.2km of OHL | E7: Clyde North
A8: Elvanfoot 275kV | B8: Clyde South 275kV | C8: 7.17km of Cable | D8: 7.17km of OHL | E8: Clyde South
A9: Crystal Rig 132kV | B9: Western Dod 132kV | C9: 3.9km of Cable | D9: 3.9km of OHL | E9: Aikengall II
A10: Farigaig 132kV | B10: Dunmaglass 132kV | C10: 4km Cable | D10: 4km OHL | E10: Dunmaglass
A11: Coalburn 132kV | B11: Galawhistle 132kV | C11: 9.7km cable | D11: 9.7km OHL | E11: Galawhistle II
A12: Melgarve 132kV | B12: Stronelairg 132kV | C12: 10km cable | D12: 10km OHL | E12: Stronelairg
A13: Moffat 132kV | B13: Harestanes 132kV | C13: 15.33km cable | D13: 15.33km OHL | E13: Harestanes

Sheet T15 & Fig 2
A1: Table 15 - Change in HH Demand Tariffs | H1: Figure 2 - HH Demand Tariffs
A3: Zone | B3: Zone Name | C3: 2017/18 Initial (£/kW) | D3: 2017/18 June (£/kW) | E3: Change (£/kW) | F3: Change in Residual (£/kW)
A4: 1 | B4: Northern Scotland | C4: 29.73228304 | D4: 30.95359348 | E4: =D4-C4 -> 1.22131044 | F4: =Residuals!$D$3 -> 1.612928722
A5: 2 | B5: Southern Scotland | C5: 30.44584098 | D5: 30.87971504 | E5: 0.4338740528 | F5: =Residuals!$D$3 -> 1.612928722
A6: 3 | B6: Northern | C6: 38.16118855 | D6: 39.40167617 | E6: 1.240487624 | F6: =Residuals!$D$3 -> 1.612928722
A7: 4 | B7: North West | C7: 43.59257191 | D7: 45.47160489 | E7: 1.879032981 | F7: =Residuals!$D$3 -> 1.612928722
A8: 5 | B8: Yorkshire | C8: 44.1255375 | D8: 45.33033123 | E8: 1.204793725 | F8: =Residuals!$D$3 -> 1.612928722
A9: 6 | B9: N Wales & Mersey | C9: 45.49839324 | D9: 47.19885427 | E9: 1.700461027 | F9: =Residuals!$D$3 -> 1.612928722
A10: 7 | B10: East Midlands | C10: 47.006708 | D10: 48.57516217 | E10: 1.568454171 | F10: =Residuals!$D$3 -> 1.612928722
A11: 8 | B11: Midlands | C11: 48.25935472 | D11: 50.03651602 | E11: 1.7771613 | F11: =Residuals!$D$3 -> 1.612928722
A12: 9 | B12: Eastern | C12: 49.02311018 | D12: 50.50277143 | E12: 1.479661247 | F12: =Residuals!$D$3 -> 1.612928722
A13: 10 | B13: South Wales | C13: 45.43736002 | D13: 47.16595445 | E13: 1.728594429 | F13: =Residuals!$D$3 -> 1.612928722
A14: 11 | B14: South East | C14: 51.82991254 | D14: 53.4748695 | E14: 1.644956958 | F14: =Residuals!$D$3 -> 1.612928722
A15: 12 | B15: London | C15: 54.37126695 | D15: 55.95345715 | E15: 1.582190191 | F15: =Residuals!$D$3 -> 1.612928722
A16: 13 | B16: Southern | C16: 52.83237145 | D16: 54.45443949 | E16: 1.622068043 | F16: =Residuals!$D$3 -> 1.612928722 | H16: Table 14
A17: 14 | B17: South Western | C17: 51.4287934 | D17: 53.04657315 | E17: 1.617779755 | F17: =Residuals!$D$3 -> 1.612928722

Sheet T16 & Fig 3
A1: Table 16 - NHH Demand Tariff Changes | G1: Figure 3 - NHH Demand Tariffs
A3: Zone | B3: Zone Name | C3: 2017/18 Initial (p/kWh) | D3: 2017/18 June (p/kWh) | E3: Change (p/kWh)
A4: 1 | B4: Northern Scotland | C4: 4.326877482 | D4: 5.251831713 | E4: =D4-C4 -> 0.9249542308 | G4: 0
A5: 2 | B5: Southern Scotland | C5: 4.865530041 | D5: 4.939041945 | E5: =D5-C5 -> 0.07351190413
A6: 3 | B6: Northern | C6: 6.221015224 | D6: 5.793732565 | E6: -0.4272826588
A7: 4 | B7: North West | C7: 5.853104256 | D7: 6.201678794 | E7: 0.3485745375
A8: 5 | B8: Yorkshire | C8: 6.962447795 | D8: 6.084581624 | E8: -0.8778661712
A9: 6 | B9: N Wales & Mersey | C9: 7.087821133 | D9: 7.110998707 | E9: 0.02317757332
A10: 7 | B10: East Midlands | C10: 6.811723224 | D10: 6.726673732 | E10: -0.08504949153
A11: 8 | B11: Midlands | C11: 6.805526343 | D11: 6.666523967 | E11: -0.1390023759
A12: 9 | B12: Eastern | C12: 6.785599528 | D12: 7.105486224 | E12: 0.3198866959
A13: 10 | B13: South Wales | C13: 6.989589296 | D13: 6.226581772 | E13: -0.7630075235
A14: 11 | B14: South East | C14: 7.070112444 | D14: 6.986978681 | E14: -0.08313376315
A15: 12 | B15: London | C15: 6.779126036 | D15: 7.179652666 | E15: 0.40052663
A16: 13 | B16: Southern | C16: 6.866446797 | D16: 7.040039368 | E16: 0.1735925712
A17: 14 | B17: South Western | C17: 7.405307141 | D17: 7.059062715 | E17: -0.3462444258

Sheet T17
A1: Table 17 - National Grid Revenue Forecast
D3: 2016-06-01
A4: Description | C4: Licence Term | D4: Yr t-1 | E4: Yr t | F4: Yr t+1 | H4: Notes
A5: Regulatory Year | D5: 2014/15 | E5: 2015/16 | F5: 2016/17 | G5: 2017/18
A6: Actual RPI | D6: 256.6666667 | H6: April to March average
A7: RPI Actual | C7: RPIAt | D7: 1.19 | H7: Office of National Statistics
A8: Assumed Interest Rate | C8: It | D8: 0.005 | E8: 0.007 | F8: 0.95 | G8: 0.01575 | H8: Bank of England Base Rate
A9: Opening Base Revenue Allowance (2009/10 prices) | B9: A1 | C9: PUt | D9: 1443.829 | E9: 1475.593 | F9: 1571.387 | G9: 1554.942 | H9: From Licence
A10: Price Control Financial Model Iteration Adjustment | B10: A2 | C10: MODt | D10: -5.5 | E10: -114.4 | F10: -185.4 | G10: -210 | H10: Determined by Ofgem/Licensee forecast
A11: RPI True Up | B11: A3 | C11: TRUt | D11: -0.5272879137 | E11: 4.701911301 | F11: -19.92143138 | G11: -31.40496473 | H11: Licensee Actual/Forecast
A12: Prior Calendar Year RPI Forecast | C12: GRPIFc-1 | D12: 0.031 | E12: 0.025 | F12: 0.01 | G12: 0.021 | H12: HM Treasury Forecast then 2.8%
A13: Current Calendar Year RPI Forecast | C13: GRPIFc | D13: 0.031 | E13: 0.024 | F13: 0.021 | G13: 0.03 | H13: HM Treasury Forecast then 2.8%
A14: Next Calendar Year RPI forecast | C14: GRPIFc+1 | D14: 0.03 | E14: 0.032 | F14: 0.03 | G14: 0.033 | H14: HM Treasury Forecast then 2.8%
A15: RPI Forecast | B15: A4 | C15: RPIFt | D15: 1.2051 | E15: 1.226652821 | F15: 1.233 | G15: 1.268 | H15: Using HM Treasury Forecast
A16: Base Revenue [A=(A1+A2+A3)*A4] | B16: A | C16: BRt | D16: 1732.694843 | E16: 1675.478846 | F16: 1684.358846 | G16: 1665.564961
A17: Pass-Through Business Rates | B17: B1 | C17: RBt | E17: 1.23533081 | F17: 1.500117926 | G17: 2.683079902 | H17: Licensee Actual/Forecast
A18: Temporary Physical Disconnection | B18: B2 | C18: TPDt | D18: 0.1439533986 | E18: 0.0123376894 | F18: 0.09047836118 | G18: 0 | H18: Licensee Actual/Forecast
A19: Licence Fee | B19: B3 | C19: LFt | E19: 2.02070276 | F19: 2.69339614 | G19: 3.180171216 | H19: Licensee Actual/Forecast
A20: Inter TSO Compensation | B20: B4 | C20: ITCt | E20: 3.822243508 | F20: 2.674543756 | G20: 0.4974462324 | H20: Licensee Actual/Forecast
A21: Termination of Bilateral Connection Agreements | B21: B5 | C21: TERMt | D21: 0 | E21: 0 | F21: 0 | G21: 0 | H21: Does not affect TNUoS
A22: SP Transmission Pass-Through | B22: B6 | C22: TSPt | D22: 312.179148 | E22: 295.664557 | F22: 294.623363 | G22: 326.9943522 | H22: 14/15 & 15/16 & 16/17 Charge setting. Later from TSP Calculation.
A23: SHE Transmission Pass-Through | B23: B7 | C23: TSHt | D23: 213.9595177 | E23: 338.2073022 | F23: 322.8363165 | G23: 323.6931858 | H23: 14/15 & 15/16 & 16/17 Charge setting. Later from TSH Calculation.
A24: Offshore Transmission Pass-Through | B24: B8 | C24: TOFTOt | D24: 218.3803735 | E24: 248.3569992 | F24: 260.7893126 | G24: 279.235244 | H24: 14/15 & 15/16 & 16/17 Charge setting. Later from OFTO Calculation.
A25: Embedded Offshore Pass-Through | B25: B9 | C25: OFETt | D25: 0.4373360836 | E25: 0.6494191446 | F25: 0.6544976174 | G25: 0.6573498571 | H25: Licensee Actual/Forecast
A26: Pass-Through Items [B=B1+B2+B3+B4+B5+B6+B7+B8+B9] | B26: B | C26: PTt | D26: 745.1003286 | E26: 889.9688923 | F26: 885.8620259 | G26: 936.9408293
A27: Reliability Incentive Adjustment | B27: C1 | C27: RIt | E27: 2.36156378 | F27: 3.92064433 | G27: 4.028556466 | H27: Licensee Actual/Forecast/Budget
A28: Stakeholder Satisfaction Adjustment | B28: C2 | C28: SSOt | E28: 8.693059732 | F28: 10.12348826 | G28: 8.627892312 | H28: Licensee Actual/Forecast/Budget
A29: Sulphur Hexafluoride (SF6) Gas Emissions Adjustment | B29: C3 | C29: SFIt | E29: 2.809201974 | F29: 2.661674685 | G29: 3.043804683 | H29: Licensee Actual/Forecast/Budget
A30: Awarded Environmental Discretionary Rewards | B30: C4 | C30: EDRt | E30: 0 | F30: 2.0215575 | G30: 0 | H30: Only includes EDR awarded to licensee to date
A31: Outputs Incentive Revenue [C=C1+C2+C3+C4] | B31: C | C31: OIPt | D31: 0 | E31: 13.86382549 | F31: 18.72736477 | G31: 15.70025346
A32: Network Innovation Allowance | B32: D | C32: NIAt | D32: 10.91597751 | E32: 10.55551673 | F32: 10.61146073 | G32: 10.49305925 | H32: Licensee Actual/Forecast/Budget
A33: Network Innovation Competition | B33: E | C33: NICFt | D33: 17.849214 | E33: 18.76065592 | F33: 44.85487989 | G33: 40.5 | H33: Sum of NICF awards determined by Ofgem/Forecast by National Grid
A34: Future Environmental Discretionary Rewards | B34: F | C34: EDRt | F34: 0 | G34: 2 | H34: Sum of future EDR awards forecast by National Grid
A35: Transmission Investment for Renewable Generation | B35: G | C35: TIRGt | D35: 15.99732651 | E35: 15.69901683 | F35: 0 | G35: 0 | H35: Licensee Actual/Forecast
A36: Scottish Site Specific Adjustment | B36: H | C36: DISt | D36: 1.984914151 | E36: 0.791 | F36: 2.864922714 | G36: 4.89570063 | H36: Licensee Actual/Forecast
A37: Scottish Terminations Adjustment | B37: I | C37: TSt | D37: -0.28187454 | E37: 0.101547 | F37: 0.07292861 | G37: 0 | H37: Licensee Actual/Forecast
A38: Correction Factor | B38: K | C38: -Kt | E38: 56.42377823 | F38: 103.977966 | G38: 105.5428162 | H38: Calculated by Licensee
A39: Maximum Revenue [M= A+B+C+D+E+F+G+H+I+K] | B39: M | C39: TOt | D39: 2524.26073 | E39: 2681.643079 | F39: 2751.330395 | G39: 2781.637619
A40: Termination Charges | B40: B5 | D40: 0 | E40: 0 | F40: 0 | G40: 0
A41: Pre-vesting connection charges | B41: P | D41: 46.95416236 | E41: 44.95520412 | F41: 42.67704326 | G41: 46.49711116 | H41: Licensee Actual/Forecast
A42: TNUoS Collected Revenue [T=M-B5-P] | B42: T | D42: 2477.306567 | E42: 2636.687875 | F42: 2708.653351 | G42: 2735.140508
A43: Final Collected Revenue | B43: U | C43: TNRt | D43: 2375.852495 | H43: Licensee Actual/Forecast
A44: Forecast percentage change to Maximum Revenue M | D44: 0 | E44: 0.0623478976 | F44: 0.02598679751 | G44: 0.01101547995
A45: Forecast percentage change to TNUoS Collected Revenue T | D45: 0 | E45: 0.06433652978 | F45: 0.02729389293 | G45: 0.009778717858
A47: Notes:
A48: All monies are nominal 'money of the day' prices unless stated otherwise
A49: Licensee forecasts and budgets are subject to change especially where they are influenced by external stakeholders
A50: Greyed out cells are either calculated or not applicable in the year concerned due to the way the licence formula are constructed
A51: NIC payments to all Transmission Owners are inlcuded in National Grid Maximum Revenue and are included here
A52: 2014/15 and 2015/16 pass through to other networks is based on forecast at time of tariff setting

Sheet T18
A1: Table 18 - SP Transmission Revenue Forecast
A3: Scottish Power Transmission Revenue Forecast | D3: Updated: | E3: 2016-04-07
A4: Description | C4: Licence Term | D4: Yr t-1 | E4: Yr t | F4: Yr t+1 | H4: Notes
D5: 2014/15 | E5: 2015/16 | F5: 2016/17
A6: Actual RPI | D6: 256.667 | F6: 0 | H6: April to March average
A7: RPI Actual | C7: RPIAt | D7: 1.19 | F7: 0 | H7: Office of National Statistics
A8: Assumed Interest Rate | C8: It | D8: 0.005 | E8: 0.00625 | F8: 0.01125 | G8: 0.01675 | H8: National Grid forecast
A9: Opening Base Revenue Allowance (2009/10 prices) | B9: A1 | C9: PUt | D9: 236.95 | E9: 258.633 | F9: 244.655 | G9: 249.439
A10: Price Control Financial Model Iteration Adjustment | B10: A2 | C10: MODt | D10: 6.2 | E10: -20.3 | F10: -21.8 | G10: -4.5
A11: RPI True Up | B11: A3 | C11: TRUt | D11: -0.1 | E11: 0.847 | F11: -3.85 | G11: -5.08
A12: RPI Forecast | B12: A4 | C12: RPIFt | D12: 1.2051 | E12: 1.2266 | F12: 1.2327 | G12: 1.2706 | H12: National Grid forecast
A13: Base Revenue [A=(A1+A2+A3)*A4] | B13: A | C13: BRt | D13: 292.899555 | E13: 293.378188 | F13: 269.9674635 | G13: 304.7648454
A14: Pass-Through Business Rates | B14: B1 | C14: RBt | D14: 0 | E14: -20.24 | F14: -4.5 | G14: -4.8
A15: Temporary Physical Disconnection | B15: B2 | C15: TPDt | D15: 0 | E15: 0 | F15: 0 | G15: 0
A16: Pass-Through Items [B=B1+B2] | B16: B | C16: PTt | D16: 0 | E16: -20.24 | F16: -4.5 | G16: -4.8
A17: Reliability Incentive Adjustment | B17: C1 | C17: RIt | D17: 0 | E17: 2.555035068 | F17: 3 | G17: 1.2
A18: Stakeholder Satisfaction Adjustment | B18: C2 | C18: SSOt | D18: 0 | E18: 1.69690348 | F18: 2.1 | G18: 0.6
A19: Sulphur Hexafluoride (SF6) Gas Emissions Adjustment | B19: C3 | C19: SFIt | D19: 0 | E19: -0.1630297099 | F19: 0.1 | G19: 0
A20: Awarded Environmental Discretionary Rewards | B20: C4 | C20: EDRt | D20: 0 | E20: 0 | F20: 0 | G20: 0.7
A21: Financial Incentive for Timely Connections Output | B21: C5 | C21: -CONADJt | D21: 0 | E21: -0.05530976141 | F21: 0 | G21: 0
A22: Outputs Incentive Revenue [C=C1+C2+C3+C4+C5] | B22: C | C22: OIPt | D22: 0 | E22: 4.033599076 | F22: 5.2 | G22: 2.5
A23: Network Innovation Allowance | B23: D | C23: NIAt | D23: 0.7 | E23: 1 | F23: 1 | G23: 1
A24: Transmission Investment for Renewable Generation | B24: G | C24: TIRGt | D24: 32.1615935 | E24: 38.09 | F24: 31.7 | G24: 33
A25: Correction Factor | B25: K | C25: -Kt | D25: 0 | E25: -4.94 | F25: 3 | G25: 5.2
A26: Maximum Revenue (M= A+B+C+D+G+J+K] | B26: M | C26: TOt | D26: 325.7611485 | E26: 311.3217871 | F26: 306.44 | G26: 341.6648454
A27: Excluded Services | B27: P | C27: EXCt | D27: 7.7 | E27: 8 | F27: 9.4 | G27: 11.8 | H27: Post BETTA Connection Charges
A28: Site Specifc Charges | B28: S | C28: EXSt | D28: 18.5 | E28: 18.8 | F28: 21.8 | G28: 25.8 | H28: Pre & Post BETTA Connection Charges
A29: TNUoS Collected Revenue (T=M+P-S) | B29: T | C29: TSPt | D29: 314.9611485 | E29: 300.5217871 | F29: 294.04 | G29: 327.6648454 | H29: General System Charge
A30: Final Collected Revenue | B30: U | C30: TNRt | D30: 312.2 | E30: 295.6 | F30: 293.9674635
A31: Forecast percentage change to TNUoS Collected Revenue T | D31: 0 | E31: -0.04584489703 | F31: -0.02156844314 | G31: 0.114354664
A33: Notes:
A34: All monies are nominal 'money of the day' prices unless stated otherwise
A35: Licensee forecasts and budgets are subject to change especially where they are influenced by external stakeholders
A36: Greyed out cells are either calculated or not applicable in the year concerned due to the way the licence formula are constructed
A37: NIC payments are not included as they do not form part of SPT Maximum Revenue
A39: Commentary
A40: All reasonable care has been taken in the preparation of these illustrative tables and the data therein. SPT offers this data without prejudice and cannot be held responsible for any loss that might be attributed to the use of this data. SPT does not accept or assume responsibility for the use of this information by any person or any person to whom this information is shown or any person to whom this information otherwise becomes available.
A42: The base revenue forecasts for the RIIO-ET1 period (2014/15 to 2018/19, inclusive) reflect the figures authorised by Ofgem in the the RIIO-ET1 Final Proposals.
A43: Within the bounds of commercial confidentiality, this forecast provides as much information as possible.
A45: This forecast contains as much information as can be currently made available. Generally, allowances determined by Ofgem are shown; and we also include forecasts for anticipated future Ofgem determinations in respect of the Iteration adjustment reflecting our latest view of totex, changes to allowed totex and cost of debt.
A46: This respects commercial confidentiality and disclosure considerations.
A48: Note that actual revenues may vary from those currently forecast.
A50: All £ figures are in money of the day
A52: Information provided in £m to one decimal place
A54: Assumptions
A55: It is assumed that there will be one set of price changes per year effective on 1st April.

Sheet T19
A1: Table 19 - SHE Transmission Revenue Forecast
A3: SHE Transmission Revenue Forecast | D3: Updated: | E3: 2016-02-29
A4: Description | C4: Licence Term | D4: Yr t-1 | E4: Yr t | F4: Yr t+1 | H4: Notes
D5: 2014/15 | E5: 2015/16 | F5: 2016/17 | G5: 2017/18
A6: Actual RPI | D6: 256.6666667 | F6: 0 | H6: April to March average
A7: RPI Actual | C7: RPIAt | D7: 1.19 | F7: 0 | H7: Office of National Statistics
A8: Assumed Interest Rate | C8: It | D8: 0.005 | E8: 0.00625 | F8: 0.01125 | G8: 0.01675 | H8: National Grid forecast
A9: Opening Base Revenue Allowance (2009/10 prices) | B9: A1 | C9: PUt | D9: 111.515 | E9: 124.139 | F9: 123.635 | G9: 119.597 | H9: From Licence
A10: Price Control Financial Model Iteration Adjustment | B10: A2 | C10: MODt | D10: 8.7 | E10: 85.2 | F10: 87.612 | G10: 84.8
A11: RPI True Up | B11: A3 | C11: TRUt | D11: -0.002 | E11: 0.522 | F11: -2.565 | G11: -6.422
A12: RPI Forecast | B12: A4 | C12: RPIFt | D12: 1.205081953 | E12: 1.226649302 | F12: 1.232732984 | G12: 1.276 | H12: 16/17 RPIF amended to reflect 16/17 Charge Setting, National Grid forecast from 17/18 onwards
A13: Base Revenue [A=(A1+A2+A3)*A4] | B13: A | C13: BRt | D13: 144.8665168 | E13: 257.4258492 | F13: 257.2491845 | G13: 252.6161
A14: Pass-Through Business Rates | B14: B1 | C14: RBt | D14: 0 | E14: -0.697 | F14: -15.969 | G14: -8.559
A15: Temporary Physical Disconnection | B15: B2 | C15: TPDt | D15: 0 | E15: 0.555 | F15: 0.132 | G15: 0.135
A16: Pass-Through Items [B=B1+B2] | B16: B | C16: PTt | D16: 0 | E16: -0.142 | F16: -15.837 | G16: -8.424
A17: Reliability Incentive Adjustment | B17: C1 | C17: RIt | E17: 1.178 | F17: 0.189 | G17: 0.69
A18: Stakeholder Satisfaction Adjustment | B18: C2 | C18: SSOt | E18: 1.605 | F18: 2.285 | G18: 3.226
A19: Sulphur Hexafluoride (SF6) Gas Emissions Adjustment | B19: C3 | C19: SFIt | E19: -0.271 | F19: -0.172 | G19: -0.182
A20: Awarded Environmental Discretionary Rewards | B20: C4 | C20: EDRt | E20: 0 | F20: 0 | G20: 0
A21: Financial Incentive for Timely Connections Output | B21: C5 | C21: -CONADJt | E21: 0 | F21: 0 | G21: 0
A22: Outputs Incentive Revenue [C=C1+C2+C3+C4+C5] | B22: C | C22: OIPt | D22: 0 | E22: 2.512 | F22: 2.302 | G22: 3.734
A23: Network Innovation Allowance | B23: D | C23: NIAt | D23: 1.257 | E23: 1.674 | F23: 1.674 | G23: 1.674
A24: Transmission Investment for Renewable Generation | B24: G | C24: TIRGt | D24: 72.198 | E24: 81.261 | F24: 79.887 | G24: 79.747
A25: Compensatory Payments Adjustment | B25: J | C25: SHCPt | D25: 0 | E25: 0.398 | F25: 0 | G25: 0
A26: Correction Factor | B26: K | C26: -Kt | E26: -1.668 | F26: 0.942 | G26: 0
A27: Maximum Revenue (M= A+B+C+D+G+J+K] | B27: M | C27: TOt | D27: 218.3215168 | E27: 341.4608492 | F27: 326.217 | G27: 329.3471
A28: Excluded Services | B28: P | C28: EXCt | D28: 0 | E28: 0 | F28: 0 | G28: 0 | H28: Post BETTA Connection Charges
A29: Site Specifc Charges | B29: S | C29: EXSt | D29: 3.465 | E29: 3.472 | F29: 3.489219709 | G29: 3.61168591 | H29: Post-Vesting, Pre-BETTA Connection Charges
A30: TNUoS Collected Revenue (T=M+P-S) | B30: T | C30: TSHt | D30: 214.8565168 | E30: 337.9888492 | F30: 322.7277803 | G30: 325.7354141 | H30: General System Charge
A31: Final Collected Revenue | B31: U | C31: TNRt | D31: 217.425 | E31: 0 | F31: 0 | G31: 0
A32: Forecast percentage change to TNUoS Collected Revenue T | D32: 0 | E32: 0.5730909829 | F32: -0.04515203496 | G32: 0.009318836895
A34: Notes:
A35: All monies are nominal 'money of the day' prices unless stated otherwise
A36: Licensee forecasts and budgets are subject to change especially where they are influenced by external stakeholders
A37: Greyed out cells are either calculated or not applicable in the year concerned due to the way the licence formula are constructed
A38: NIC payments are not included as they do not form part of SHET Maximum Revenue
A40: Commentary
A41: All reasonable care has been taken in the preparation of these illustrative tables and the data therein. SHET offers these data without prejudice and cannot be held responsible for any loss that might be attributed to the use of these data. SHET does not accept or assume responsibility for the use of this information by any person or any person to whom this information is shown or any person to whom this information otherwise becomes available.
A43: The base revenue forecasts for the RIIO-ET1 period (2014/15 to 2018/19, inclusive) reflect the figures authorised by Ofgem in the RIIO-ET1 Final Proposals.
A44: Within the bounds of commercial confidentiality, this forecast provides as much information as possible.
A46: This forecast contains as much information as can be currently made available. Generally, allowances determined by Ofgem are shown; whilst those for which Ofgem determinations are expected are not.
A47: This respects commercial confidentiality and disclosure considerations.
A49: Note that actual revenues may vary from those currently forecast.
A51: All £ figures are in money of the day
A53: Information provided in £m to one decimal place
A55: Assumptions
A56: It is assumed that there will be one set of price changes per year effective on 1st April.

Sheet T20
A1: Table 20 - Offshore Revenues
A3: Offshore Transmission Revenue Forecast | B3: 2016-06-14
A4: Description | B4: Yr t-1 | C4: Yr t | D4: Yr t+1 | E4: Yr t+2 | F4: Notes
A5: Regulatory Year | B5: 2014/15 | C5: 2015/16 | D5: 2016/17 | E5: 2017/18
A6: Barrow | B6: 5.475948387 | C6: 5.605119166 | D6: 5.656283019 | E6: 5.930055187
A7: Gunfleet | B7: 6.853152423 | C7: 7.014459018 | D7: 7.080594599 | E7: 7.50614119
A8: Walney 1 | B8: 12.49105951 | C8: 12.78636456 | D8: 12.90184157 | E8: 13.1122236
A9: Robin Rigg | B9: 7.709472064 | C9: 7.891440662 | D9: 7.993308366 | E9: 8.531297514
A10: Walney 2 | B10: 12.92696073 | C10: 13.23221075 | D10: 12.51589741 | E10: 13.56833929
A11: Sheringham Shoal | B11: 18.92412411 | C11: 19.49893387 | D11: 19.72766462 | E11: 19.99407285
A12: Ormonde | B12: 11.57050189 | C12: 11.84309117 | D12: 11.95215008 | E12: 12.29398863
A13: Greater Gabbard | B13: 25.9995199 | C13: 26.61925023 | D13: 26.87143257 | E13: 27.28889047
A14: London Array | B14: 37.57295282 | C14: 39.2120985 | D14: 39.49870272 | E14: 38.44126241
A15: Thanet | B15: 78.85668167 | C15: 17.51705273 | D15: 15.69984448 | E15: 17.87687417
A16: Lincs | C16: 25.56339384 | D16: 26.68704214 | E16: 27.42017646
A17: Gwynt y mor | C17: 26.28358513 | D17: 23.6461166 | E17: 26.03129043
A18: West of Duddon Sands | C18: 35.2899996 | D18: 21.27389291 | E18: 21.93963303
A19: Humber Gateway | B19: 0 | D19: 29.28454151 | E19: 15.68643323 | F19: National Grid Forecast
A20: Westermost Rough | B20: 0 | E20: 12.50824988
A21: Forecast to asset transfer to OFTO in 2017/18 | E21: 11.10631567 | F21: National Grid Forecast
A22: Offshore Transmission Pass-Through (B7) | B22: 218.3803735 | C22: 248.3569992 | D22: 260.7893126 | E22: 279.235244
A26: Notes:
A27: All monies are nominal 'money of the day' prices unless stated otherwise
A28: Licensee forecasts and budgets are subject to change especially where they are influenced by external stakeholders

Sheet T21
A1: Table 21 - Demand Profiles
C3: 2017/18 Initial | G3: 2017/18 June
A4: Zone | B4: Zone Name | C4: Locational Model Demand (MW) | D4: Tariff model Peak Demand (MW) | E4: Tariff Model HH Demand (MW) | F4: Tariff model NHH Demand (TWh) | G4: Locational Model Demand (MW) | H4: Tariff model Peak Demand (MW) | I4: Tariff Model HH Demand (MW) | J4: Tariff model NHH Demand (TWh)
A5: 1 | B5: Northern Scotland | C5: 607.3848758 | D5: 551.4740722 | E5: -379.5401563 | F5: 0.6394818928 | G5: 679 | H5: 674.9237016 | I5: -501.2810037 | J5: 0.690656009
A6: 2 | B6: Southern Scotland | C6: 3214.935228 | D6: 3113.929309 | E6: 643.4353926 | F6: 1.542516397 | G6: 2967.937135 | H6: 3339.467373 | I6: 713.9991668 | J6: 1.63700355
A7: 3 | B7: Northern | C7: 2590.200283 | D7: 2152.098507 | E7: 331.6391903 | F7: 1.114453051 | G7: 2604 | H7: 2271.575867 | I7: 616.8198045 | J7: 1.124312177
A8: 4 | B8: North West | C8: 4032.122758 | D8: 3664.197366 | E8: 1182.772651 | F8: 1.849734738 | G8: 3503 | H8: 4029.546608 | I8: 1421.969005 | J8: 1.912311754
A9: 5 | B9: Yorkshire | C9: 4582.853971 | D9: 3838.604884 | E9: 1172.967228 | F9: 1.687118812 | G9: 4650 | H9: 3687.662146 | I9: 1334.078913 | J9: 1.754188497
A10: 6 | B10: N Wales & Mersey | C10: 1887.140138 | D10: 2988.151014 | E10: 1170.244616 | F10: 1.165621516 | G10: 2687 | H10: 2457.444444 | I10: 623.3851081 | J10: 1.21604186
A11: 7 | B11: East Midlands | C11: 5077.25 | D11: 4745.403867 | E11: 1717.840957 | F11: 2.08884275 | G11: 5138 | H11: 4574.137635 | I11: 1596.876253 | J11: 2.149956678
A12: 8 | B12: Midlands | C12: 4422.22 | D12: 4192.595837 | E12: 1559.506365 | F12: 1.867445827 | G12: 4500 | H12: 4313.668488 | I12: 1754.313375 | J12: 1.921898641
A13: 9 | B13: Eastern | C13: 5650.479397 | D13: 6015.588528 | E13: 1852.892907 | F13: 3.008518846 | G13: 5848 | H13: 6093.153171 | I13: 1818.441307 | J13: 3.037684306
A14: 10 | B14: South Wales | C14: 1921.384875 | D14: 2221.061023 | E14: 1012.899662 | F14: 0.7846154174 | G14: 1967 | H14: 1724.641692 | I14: 653.0042958 | J14: 0.8122831388
A15: 11 | B15: South East | C15: 3618.432757 | D15: 3599.399172 | E15: 1070.967712 | F15: 1.854555868 | G15: 3627 | H15: 3486.957038 | I15: 1107.568291 | J15: 1.822334154
A16: 12 | B16: London | C16: 4863.503187 | D16: 4406.202813 | E16: 2060.895938 | F16: 1.884094477 | G16: 5210 | H16: 4778.776393 | I16: 2470.28074 | J16: 1.800673955
A17: 13 | B17: Southern | C17: 5905.47463 | D17: 5547.460911 | E17: 2323.614763 | F17: 2.4833324 | G17: 5938.425481 | H17: 5334.770147 | I17: 2094.656027 | J17: 2.508253664
A18: 14 | B18: South Western | C18: 2711.380121 | D18: 2261.570753 | E18: 579.7322627 | F18: 1.167878721 | G18: 2604 | H18: 2334.093293 | I18: 703.0938252 | J18: 1.226226307
A19: Total | C19: =SUM(C5:C18) -> 51084.76222 | D19: 49297.73806 | E19: 16299.86949 | F19: =SUM(F5:F18) -> 23.13821071 | G19: 51923.36262 | H19: 49100.818 | I19: 16407.20511 | J19: 23.61382469

Sheet T27
B3: Zone | C3: Zone Name | D3: Peak Security Tariff | E3: Year Round Tariff | F3: Residual | G3: Small Generators Discount | H3: HH Demand Tariff (£/kW)
B4: 1 | C4: Northern Scotland | D4: 2.406495783 | E4: -20.0245219 | F4: 47.95488696 | G4: 0.6167326345 | H4: 30.95359348
B5: 2 | C5: Southern Scotland | D5: 0.1296721948 | E5: -17.82157676 | F5: 47.95488696 | G5: 0.6167326345 | H5: 30.87971504
B6: 3 | C6: Northern | D6: -2.925503176 | E6: -6.244440251 | F6: 47.95488696 | G6: 0.6167326345 | H6: 39.40167617
B7: 4 | C7: North West | D7: -1.168161894 | E7: -1.931852816 | F7: 47.95488696 | G7: 0.6167326345 | H7: 45.47160489
B8: 5 | C8: Yorkshire | D8: -3.070751468 | E8: -0.1705369024 | F8: 47.95488696 | G8: 0.6167326345 | H8: 45.33033123
B9: 6 | C9: N Wales & Mersey | D9: -1.548333596 | E9: 0.1755682696 | F9: 47.95488696 | G9: 0.6167326345 | H9: 47.19885427
B10: 7 | C10: East Midlands | D10: -2.113691724 | E10: 2.117234293 | F10: 47.95488696 | G10: 0.6167326345 | H10: 48.57516217
B11: 8 | C11: Midlands | D11: -1.46694424 | E11: 2.931840664 | F11: 47.95488696 | G11: 0.6167326345 | H11: 50.03651602
B12: 9 | C12: Eastern | D12: 1.258748943 | E12: 0.6724028913 | F12: 47.95488696 | G12: 0.6167326345 | H12: 50.50277143
B13: 10 | C13: South Wales | D13: -5.691125572 | E13: 4.285460427 | F13: 47.95488696 | G13: 0.6167326345 | H13: 47.16595445
B14: 11 | C14: South East | D14: 3.879361722 | E14: 1.023888176 | F14: 47.95488696 | G14: 0.6167326345 | H14: 53.4748695
B15: 12 | C15: London | D15: 5.110923764 | E15: 2.270913785 | F15: 47.95488696 | G15: 0.6167326345 | H15: 55.95345715
B16: 13 | C16: Southern | D16: 1.804194384 | E16: 4.078625511 | F16: 47.95488696 | G16: 0.6167326345 | H16: 54.45443949
B17: 14 | C17: South Western | D17: -0.7631243504 | E17: 5.238077906 | F17: 47.95488696 | G17: 0.6167326345 | H17: 53.04657315

Sheet TEC changes
B2: Power Station | C2: Node | D2: MW Change | E2: Zone
B3: Aberthaw | C3: ABTH20 | D3: -10 | E3: 21
B4: A'Chruach Wind Farm | C4: ACHR1R | D4: -6.9 | E4: 7
B5: Afton | C5: BLAC10 | D5: -18 | E5: 10
B6: Beatrice Wind Farm | C6: BLHI40 | D6: -20 | E6: 1
B7: Blacklaw Extension | C7: BLKX10 | D7: -9 | E7: 11
B8: Clyde North | C8: CLYN2Q | D8: -36.7 | E8: 11
B9: Clyde South | C9: CLYS2R | D9: 54 | E9: 11
B10: Crystal Rig 2 | C10: CRYR40 | D10: -62 | E10: 11
B11: Crystal Rig 3 | C11: CRYR40 | D11: 62 | E11: 11
B12: Drax | C12: DRAX40 | D12: -3906 | E12: 15
B13: Drax (Biomass) | C13: DRAX40 | D13: 1905 | E13: 15
B14: Drax (Coal) | C14: DRAX40 | D14: 2001 | E14: 15
B15: Harestanes | C15: HARE10 | D15: -17.3 | E15: 12
B16: Keith Hill Wind Farm | C16: DUNE10 | D16: 0.5 | E16: 11
B17: Lynemouth Power Station | C17: BLYT20 | D17: 376 | E17: 13
B18: Medway Power Station | C18: GRAI40 | D18: 35 | E18: 24
B19: Peterborough | C19: WALP40_EME | D19: 245 | E19: 17
B20: Rugeley | C20: RUGE40 | D20: -980 | E20: 18
B21: Taylors Lane | C21: WISD20_LPN | D21: -144 | E21: 23

Sheet Sensitivities
B3: Sensitivities
B5: £50m increase in revenue recovered from TNUoS | F5: Change in Demand | H5: Change in Tariff
B6: Change in Generation Tariffs (£/kW) | C6: 0 | F6: Peak Demand (MW) | G6: 982
B7: Change in HH Demand Tariffs (£/kW) | C7: 1.02 | F7: HH Demand (MW) | G7: 328 | H7: HH Tariff (£/kW) | I7: -0.94
B8: Change in NHH Demand Tariffs (p/kWh) | C8: 0.14 | F8: NHH Demand (TWh) | G8: 0 | H8: NHH Tariff (£/kWh) | I8: 0
